fUST/lending_fUST_20241123
["ID","MTS","AMOUNT","RATE_DAILY","PERIOD"]
[343111482,1732365051315,-172.00560314,0.00019178,2]
[343111483,1732365051324,-500.0,0.00019178,2]
[343111484,1732365051334,-500.0,0.00019178,2]
[343111485,1732365051344,-500.0,0.00019178,2]
[343111486,1732365051353,-500.0,0.00019178,2]
[343111487,1732365051363,-500.0,0.00019178,2]
[343111488,1732365051373,-204.39,0.00019178,2]
[343111489,1732365051382,-500.0,0.00019178,2]
[343111490,1732365051392,-527.18,0.00019178,2]
[343111491,1732365051403,-500.0,0.00019178,2]
[343111492,1732365051416,-500.0,0.00019178,2]
[343111493,1732365051427,-500.0,0.00019178,2]
[343111494,1732365051436,-500.0,0.00019178,2]
[343111495,1732365051447,-500.0,0.00019178,2]
[343111496,1732365051457,-500.0,0.00019178,2]
[343111497,1732365051467,-790.31,0.00019178,2]
[343111498,1732365051478,-583.85332907,0.00019178,2]
[343111499,1732365051487,-500.0,0.00019178,2]
[343111500,1732365051497,-500.0,0.00019178,2]
[343111501,1732365051508,-500.0,0.00019178,2]
[343111502,1732365051518,-1776.9,0.00019178,2]
[343111503,1732365051528,-691.59,0.00019178,2]
[343111504,1732365051537,-972.14,0.00019178,2]
[343111505,1732365051547,-500.0,0.00019178,2]
[343111506,1732365051557,-500.0,0.00019178,2]
[343111507,1732365051567,-500.0,0.00019178,2]
[343111508,1732365051576,-500.0,0.00019178,2]
[343111509,1732365051586,-500.0,0.00019178,2]
[343111510,1732365051596,-500.0,0.00019178,2]
[343111511,1732365051606,-500.0,0.00019178,2]
[343111512,1732365051615,-500.0,0.00019178,2]
[343111513,1732365051625,-500.0,0.00019178,2]
[343111514,1732365051635,-709.17,0.00019178,2]
[343111515,1732365051645,-500.0,0.00019178,2]
[343111516,1732365051655,-500.0,0.00019178,2]
[343111517,1732365051664,-500.0,0.00019178,2]
[343111518,1732365051677,-570.92321288,0.00019178,2]
[343111519,1732365051687,-500.0,0.00019178,2]
[343111520,1732365051697,-500.0,0.00019178,2]
[343111521,1732365051708,-500.0,0.00019178,2]
[343111522,1732365051718,-500.0,0.00019178,2]
[343111523,1732365051728,-500.0,0.00019178,2]
[343111524,1732365051737,-391.70058118,0.00019178,2]
[343111525,1732365051747,-500.0,0.00019178,2]
[343111526,1732365051756,-500.0,0.00019178,2]
[343111527,1732365051765,-532.16,0.00019178,2]
[343111528,1732365051775,-500.0,0.00019178,2]
[343111529,1732365051784,-515.0,0.00019178,2]
[343111530,1732365051794,-500.0,0.00019178,2]
[343111531,1732365051804,-500.0,0.00019178,2]
[343111532,1732365051813,-500.0,0.00019178,2]
[343111533,1732365051823,-767.81,0.00019178,2]
[343111534,1732365051833,-500.0,0.00019178,2]
[343111535,1732365051842,-554.72671425,0.00019178,2]
[343111536,1732365051851,-500.0,0.00019178,2]
[343111537,1732365051861,-500.0,0.00019178,2]
[343111538,1732365051870,-1313.14,0.00019178,2]
[343111539,1732365051880,-500.0,0.00019178,2]
[343111540,1732365051889,-500.0,0.00019178,2]
[343111541,1732365051899,-500.0,0.00019178,2]
[343111542,1732365051909,-500.0,0.00019178,2]
[343111543,1732365051919,-500.0,0.00019178,2]
[343111544,1732365051929,-500.0,0.00019178,2]
[343111545,1732365051939,-1365.47,0.00019178,2]
[343111546,1732365051948,-2066.4,0.00019178,2]
[343111547,1732365051958,-664.89,0.00019178,2]
[343111548,1732365051967,-250.0,0.00019178,2]
[343111549,1732365051977,-161.06864581,0.00019178,2]
[343111550,1732365051986,-500.0,0.00019178,2]
[343111551,1732365051995,-500.0,0.00019178,2]
[343111552,1732365052005,-500.0,0.00019178,2]
[343111553,1732365052016,-500.0,0.00019178,2]
[343111554,1732365052026,-287.37743485,0.00019178,2]
[343111555,1732365052037,-500.0,0.00019178,2]
[343111556,1732365052049,-570.15,0.00019178,2]
[343111557,1732365052059,-500.0,0.00019178,2]
[343111558,1732365052069,-500.0,0.00019178,2]
[343111559,1732365052079,-500.0,0.00019178,2]
[343111560,1732365052090,-945.81,0.00019178,2]
[343111561,1732365052099,-500.0,0.00019178,2]
[343111562,1732365052108,-500.0,0.00019178,2]
[343111563,1732365052118,-500.0,0.00019178,2]
[343111564,1732365052127,-730.44,0.00019178,2]
[343111565,1732365052136,-500.0,0.00019178,2]
[343111566,1732365052146,-1009.28,0.00019178,2]
[343111567,1732365052155,-500.0,0.00019178,2]
[343111568,1732365052165,-500.0,0.00019178,2]
[343111569,1732365052175,-504.25929556,0.00019178,2]
[343111570,1732365052185,-707.74,0.00019178,2]
[343111571,1732365052195,-500.0,0.00019178,2]
[343111572,1732365052204,-500.0,0.00019178,2]
[343111573,1732365052214,-500.0,0.00019178,2]
[343111574,1732365052223,-560.78951275,0.00019178,2]
[343111575,1732365052232,-500.0,0.00019178,2]
[343111576,1732365052242,-500.0,0.00019178,2]
[343111577,1732365052251,-500.0,0.00019178,2]
[343111578,1732365052260,-500.0,0.00019178,2]
[343111579,1732365052270,-834.82,0.00019178,2]
[343111580,1732365052279,-611.22,0.00019178,2]
[343111581,1732365052289,-500.0,0.00019178,2]
[343111582,1732365052298,-500.0,0.00019178,2]
[343111583,1732365052308,-885.42,0.00019178,2]
[343111584,1732365052318,-2000.29,0.00019178,2]
[343111585,1732365052327,-1240.12,0.00019178,2]
[343111586,1732365052337,-842.78,0.00019178,2]
[343111587,1732365052346,-578.33,0.00019178,2]
[343111588,1732365052355,-500.0,0.00019178,2]
[343111589,1732365052365,-500.0,0.00019178,2]
[343111590,1732365052374,-500.0,0.00019178,2]
[343111591,1732365052383,-1383.33,0.00019178,2]
[343111592,1732365052393,-500.0,0.00019178,2]
[343111593,1732365052403,-500.0,0.00019178,2]
[343111594,1732365052413,-1169.97,0.00019178,2]
[343111595,1732365052424,-1291.18,0.00019178,2]
[343111596,1732365052435,-500.0,0.00019178,2]
[343111597,1732365052444,-500.0,0.00019178,2]
[343111598,1732365052454,-646.71,0.00019178,2]
[343111599,1732365052464,-509.99138078,0.00019178,2]
[343111600,1732365052474,-500.0,0.00019178,2]
[343111601,1732365052484,-793.31,0.00019178,2]
[343111602,1732365052494,-777.35,0.00019178,2]
[343111603,1732365052504,-500.0,0.00019178,2]
[343111604,1732365052513,-500.0,0.00019178,2]
[343111605,1732365052523,-574.6,0.00019178,2]
[343111606,1732365052532,-675.76,0.00019178,2]
[343111607,1732365052542,-500.0,0.00019178,2]
[343111608,1732365052551,-834.23,0.00019178,2]
[343111609,1732365052560,-1775.31,0.00019178,2]
[343111610,1732365052569,-1241.49,0.00019178,2]
[343111611,1732365052579,-500.0,0.00019178,2]
[343111612,1732365052588,-500.0,0.00019178,2]
[343111613,1732365052598,-500.0,0.00019178,2]
[343111614,1732365052608,-940.78,0.00019178,2]
[343111615,1732365052617,-500.0,0.00019178,2]
[343111616,1732365052627,-1036.92,0.00019178,2]
[343111617,1732365052636,-500.0,0.00019178,2]
[343111618,1732365052645,-500.0,0.00019178,2]
[343111619,1732365052654,-396.76693763,0.00019178,2]
[343111620,1732365052664,-559.35,0.00019178,2]
[343111621,1732365052676,-500.0,0.00019178,2]
[343111622,1732365052686,-760.69,0.00019178,2]
[343111623,1732365052695,-643.64065253,0.00019178,2]
[343111624,1732365052705,-500.0,0.00019178,2]
[343111625,1732365052714,-747.52,0.00019178,2]
[343111626,1732365052723,-500.0,0.00019178,2]
[343111627,1732365052733,-499.34919602,0.00019178,2]
[343111628,1732365052742,-652.03,0.00019178,2]
[343111629,1732365052752,-500.0,0.00019178,2]
[343111630,1732365052761,-500.0,0.00019178,2]
[343111631,1732365052771,-500.0,0.00019178,2]
[343111632,1732365052780,-500.0,0.00019178,2]
[343111633,1732365052791,-3171.39,0.00019178,2]
[343111634,1732365052801,-500.0,0.00019178,2]
[343111635,1732365052810,-232.57985714,0.00019178,2]
[343111636,1732365052820,-1121.64,0.00019178,2]
[343111637,1732365052829,-500.0,0.00019178,2]
[343111638,1732365052838,-1906.01,0.00019178,2]
[343111639,1732365052848,-1273.82,0.00019178,2]
[343111640,1732365052857,-500.0,0.00019178,2]
[343111641,1732365052866,-500.0,0.00019178,2]
[343111642,1732365052876,-2677.03,0.00019178,2]
[343111643,1732365052885,-804.49,0.00019178,2]
[343111644,1732365052894,-544.81,0.00019178,2]
[343111645,1732365052904,-500.0,0.00019178,2]
[343111646,1732365052914,-675.75,0.00019178,2]
[343111647,1732365052926,-781.85,0.00019178,2]
[343111648,1732365052935,-500.0,0.00019178,2]
[343111649,1732365052944,-500.0,0.00019178,2]
[343111650,1732365052953,-500.0,0.00019178,2]
[343111651,1732365052962,-500.0,0.00019178,2]
[343111652,1732365052974,-500.0,0.00019178,2]
[343111653,1732365052983,-500.0,0.00019178,2]
[343111654,1732365052994,-500.0,0.00019178,2]
[343111655,1732365053004,-500.0,0.00019178,2]
[343111656,1732365053015,-752.17,0.00019178,2]
[343111657,1732365053024,-580.93,0.00019178,2]
[343111658,1732365053034,-500.0,0.00019178,2]
[343111659,1732365053043,-500.0,0.00019178,2]
[343111660,1732365053053,-500.0,0.00019178,2]
[343111661,1732365053062,-500.0,0.00019178,2]
[343111662,1732365053072,-500.0,0.00019178,2]
[343111663,1732365053081,-500.0,0.00019178,2]
[343111664,1732365053091,-1519.39,0.00019178,2]
[343111665,1732365053100,-754.72,0.00019178,2]
[343111666,1732365053110,-500.0,0.00019178,2]
[343111667,1732365053119,-728.64,0.00019178,2]
[343111668,1732365053128,-500.0,0.00019178,2]
[343111669,1732365053138,-1276.61,0.00019178,2]
[343111670,1732365053147,-500.0,0.00019178,2]
[343111671,1732365053155,-500.0,0.00019178,2]
[343111672,1732365053164,-500.0,0.00019178,2]
[343111673,1732365053175,-500.0,0.00019178,2]
[343111674,1732365053188,-500.0,0.00019178,2]
[343111675,1732365053198,-1140.09,0.00019178,2]
[343111676,1732365053207,-500.0,0.00019178,2]
[343111677,1732365053217,-500.0,0.00019178,2]
[343111678,1732365053344,-500.0,0.00019178,2]
[343111679,1732365053353,-500.0,0.00019178,2]
[343111680,1732365053363,-596.72,0.00019178,2]
[343111681,1732365053373,-1046.62,0.00019178,2]
[343111682,1732365053383,-500.0,0.00019178,2]
[343111683,1732365053393,-16151.6,0.00019178,2]
[343111684,1732365053405,-500.0,0.00019178,2]
[343111685,1732365053418,-1058.84,0.00019178,2]
[343111686,1732365053431,-151.36925901,0.00019178,2]
[343111687,1732365053441,-1460.86,0.00019178,2]
[343111688,1732365053451,-809.59,0.00019178,2]
[343111689,1732365053460,-518.79,0.00019178,2]
[343111690,1732365053470,-4867.48,0.00019178,2]
[343111691,1732365053479,-500.0,0.00019178,2]
[343111692,1732365053489,-500.0,0.00019178,2]
[343111693,1732365053500,-500.0,0.00019178,2]
[343111694,1732365053510,-500.0,0.00019178,2]
[343111695,1732365053520,-500.0,0.00019178,2]
[343111696,1732365053529,-500.0,0.00019178,2]
[343111697,1732365053539,-1059.49,0.00019178,2]
[343111698,1732365053549,-500.0,0.00019178,2]
[343111699,1732365053558,-500.0,0.00019178,2]
[343111700,1732365053568,-500.0,0.00019178,2]
[343111701,1732365053577,-500.0,0.00019178,2]
[343111702,1732365053587,-500.0,0.00019178,2]
[343111703,1732365053596,-1250.83,0.00019178,2]
[343111704,1732365053606,-8968.37,0.00019178,2]
[343111705,1732365053618,-646.62,0.00019178,2]
[343111706,1732365053627,-225.64780657,0.00019178,2]
[343111707,1732365053637,-500.0,0.00019178,2]
[343111708,1732365053649,-500.0,0.00019178,2]
[343111709,1732365053659,-2179.98,0.00019178,2]
[343111710,1732365053670,-196.52059612,0.00019178,2]
[343111711,1732365053682,-1350.53,0.00019178,2]
[343111712,1732365053696,-508.17069006,0.00019178,2]
[343111713,1732365053705,-1020.09,0.00019178,2]
[343111714,1732365053715,-500.0,0.00019178,2]
[343111715,1732365053724,-500.0,0.00019178,2]
[343111716,1732365053734,-500.0,0.00019178,2]
[343111717,1732365053744,-690.62,0.00019178,2]
[343111718,1732365053754,-500.0,0.00019178,2]
[343111719,1732365053763,-500.0,0.00019178,2]
[343111720,1732365053773,-6393.89,0.00019178,2]
[343111721,1732365053782,-500.0,0.00019178,2]
[343111722,1732365053791,-500.0,0.00019178,2]
[343111723,1732365053801,-840.66,0.00019178,2]
[343111724,1732365053810,-1352.71,0.00019178,2]
[343111725,1732365053819,-1066.82,0.00019178,2]
[343111726,1732365053828,-1355.05,0.00019178,2]
[343111727,1732365053837,-529.10471257,0.00019178,2]
[343111728,1732365053846,-655.72,0.00019178,2]
[343111729,1732365053855,-500.0,0.00019178,2]
[343111730,1732365053864,-501.09,0.00019178,2]
[343111731,1732365053873,-500.0,0.00019178,2]
[343111732,1732365053883,-500.0,0.00019178,2]
[343111733,1732365053891,-500.0,0.00019178,2]
[343111734,1732365053901,-500.0,0.00019178,2]
[343111735,1732365053910,-500.0,0.00019178,2]
[343111736,1732365053921,-1000.3,0.00019178,2]
[343111737,1732365053931,-859.46,0.00019178,2]
[343111738,1732365053940,-500.0,0.00019178,2]
[343111739,1732365053950,-762.11,0.00019178,2]
[343111740,1732365053959,-500.0,0.00019178,2]
[343111741,1732365053968,-500.0,0.00019178,2]
[343111742,1732365053978,-500.0,0.00019178,2]
[343111743,1732365053987,-500.0,0.00019178,2]
[343111744,1732365053996,-500.0,0.00019178,2]
[343111745,1732365054006,-30968.02,0.00019178,2]
[343111746,1732365054015,-500.0,0.00019178,2]
[343111747,1732365054025,-5364.8,0.00019178,2]
[343111748,1732365054035,-500.0,0.00019178,2]
[343111749,1732365054044,-500.0,0.00019178,2]
[343111750,1732365054053,-1861.86,0.00019178,2]
[343111751,1732365054062,-162.259667,0.00019178,2]
[343111752,1732365054071,-567.18567278,0.00019306,2]
[343111753,1732365054084,-500.0,0.00019306,2]
[343111754,1732365054093,-500.0,0.00019452,2]
[343111755,1732365054102,-468.36529264,0.00019452,2]
[343111756,1732365054112,-500.0,0.00019452,2]
[343111757,1732365054122,-500.0,0.00019452,2]
[343111758,1732365054131,-500.0,0.00019452,2]
[343111759,1732365054140,-500.0,0.00019452,2]
[343111760,1732365054149,-500.0,0.00019452,2]
[343111761,1732365054159,-151.78912953,0.00019452,2]
[343111762,1732365054171,-525.34,0.00019452,2]
[343111763,1732365054181,-500.0,0.00019452,2]
[343111764,1732365054190,-500.0,0.00019452,2]
[343111765,1732365054200,-749.62,0.00019452,2]
[343111766,1732365054209,-500.0,0.00019452,2]
[343111767,1732365054219,-500.0,0.00019452,2]
[343111768,1732365054228,-892.67,0.00019452,2]
[343111769,1732365054237,-635.52,0.00019452,2]
[343111770,1732365054246,-1480.91,0.00019452,2]
[343111771,1732365054256,-500.0,0.00019452,2]
[343111772,1732365054265,-500.0,0.00019452,2]
[343111773,1732365054275,-500.0,0.00019452,2]
[343111774,1732365054284,-500.0,0.00019452,2]
[343111775,1732365054294,-500.0,0.00019452,2]
[343111776,1732365054303,-204.39,0.00019452,2]
[343111777,1732365054313,-238.69238328,0.00019452,2]
[343111778,1732365054322,-527.18,0.00019452,2]
[343111779,1732365054331,-500.0,0.00019452,2]
[343111780,1732365054341,-500.0,0.00019452,2]
[343111781,1732365054350,-230.5169804,0.00019452,2]
[343111782,1732365054359,-500.0,0.00019452,2]
[343111783,1732365054369,-574.59320516,0.00019452,2]
[343111784,1732365054378,-500.0,0.00019452,2]
[343111785,1732365054387,-790.31,0.00019452,2]
[343111786,1732365054398,-500.0,0.00019452,2]
[343111787,1732365054409,-500.0,0.00019452,2]
[343111788,1732365054421,-500.0,0.00019452,2]
[343111789,1732365054430,-1776.9,0.00019452,2]
[343111790,1732365054440,-691.59,0.00019452,2]
[343111791,1732365054450,-972.14,0.00019452,2]
[343111792,1732365054460,-342.51485559,0.00019452,2]
[343111793,1732365054469,-500.0,0.00019452,2]
[343111794,1732365054478,-500.0,0.00019452,2]
[343111795,1732365054489,-500.0,0.00019452,2]
[343111796,1732365054499,-500.0,0.00019452,2]
[343111797,1732365054509,-500.0,0.00019452,2]
[343111798,1732365054519,-500.0,0.00019452,2]
[343111799,1732365054528,-262.00678952,0.00019452,2]
[343111800,1732365054538,-500.0,0.00019452,2]
[343111801,1732365054547,-709.17,0.00019452,2]
[343111802,1732365054557,-500.0,0.00019452,2]
[343111803,1732365054566,-500.0,0.00019452,2]
[343111804,1732365054575,-354.54634783,0.00019452,2]
[343111805,1732365054585,-500.0,0.00019452,2]
[343111806,1732365054594,-500.0,0.00019452,2]
[343111807,1732365054604,-500.0,0.00019452,2]
[343111808,1732365054614,-500.0,0.00019452,2]
[343111809,1732365054624,-500.0,0.00019452,2]
[343111810,1732365054634,-500.0,0.00019452,2]
[343111811,1732365054644,-500.0,0.00019452,2]
[343111812,1732365054654,-532.16,0.00019452,2]
[343111813,1732365054663,-500.0,0.00019452,2]
[343111814,1732365054674,-515.0,0.00019452,2]
[343111815,1732365054683,-500.0,0.00019452,2]
[343111816,1732365054693,-500.0,0.00019452,2]
[343111817,1732365054703,-500.0,0.00019452,2]
[343111818,1732365054712,-767.81,0.00019452,2]
[343111819,1732365054722,-500.0,0.00019452,2]
[343111820,1732365054732,-500.0,0.00019452,2]
[343111821,1732365054741,-500.0,0.00019452,2]
[343111822,1732365054752,-1313.14,0.00019452,2]
[343111823,1732365054761,-171.8595185,0.00019452,2]
[343111824,1732365054771,-500.0,0.00019452,2]
[343111825,1732365054780,-500.0,0.00019452,2]
[343111826,1732365054790,-500.0,0.00019452,2]
[343111827,1732365054800,-472.06465071,0.00019452,2]
[343111828,1732365054810,-500.0,0.00019452,2]
[343111829,1732365054819,-1365.47,0.00019452,2]
[343111830,1732365054829,-2066.4,0.00019452,2]
[343111831,1732365054838,-664.89,0.00019452,2]
[343111832,1732365054847,-251.34064412,0.00019452,2]
[343111833,1732365054857,-500.0,0.00019452,2]
[343111834,1732365054867,-500.0,0.00019452,2]
[343111835,1732365054876,-500.0,0.00019452,2]
[343111836,1732365054886,-500.0,0.00019452,2]
[343111837,1732365054895,-500.0,0.00019452,2]
[343111838,1732365054905,-570.15,0.00019452,2]
[343111839,1732365054916,-500.0,0.00019452,2]
[343111840,1732365054928,-500.0,0.00019452,2]
[343111841,1732365054938,-500.0,0.00019452,2]
[343111842,1732365054948,-945.81,0.00019452,2]
[343111843,1732365054957,-500.0,0.00019452,2]
[343111844,1732365054967,-500.0,0.00019452,2]
[343111845,1732365054977,-500.0,0.00019452,2]
[343111846,1732365054987,-730.44,0.00019452,2]
[343111847,1732365054996,-500.0,0.00019452,2]
[343111848,1732365055006,-1009.28,0.00019452,2]
[343111849,1732365055015,-500.0,0.00019452,2]
[343111850,1732365055025,-500.0,0.00019452,2]
[343111851,1732365055034,-707.74,0.00019452,2]
[343111852,1732365055044,-500.0,0.00019452,2]
[343111853,1732365055052,-500.0,0.00019452,2]
[343111854,1732365055062,-500.0,0.00019452,2]
[343111855,1732365055071,-500.0,0.00019452,2]
[343111856,1732365055081,-500.0,0.00019452,2]
[343111857,1732365055090,-500.0,0.00019452,2]
[343111858,1732365055100,-500.0,0.00019452,2]
[343111859,1732365055109,-834.82,0.00019452,2]
[343111860,1732365055119,-611.22,0.00019452,2]
[343111861,1732365055128,-500.0,0.00019452,2]
[343111862,1732365055137,-500.0,0.00019452,2]
[343111863,1732365055146,-885.42,0.00019452,2]
[343111864,1732365055156,-2000.29,0.00019452,2]
[343111865,1732365055167,-1240.12,0.00019452,2]
[343111866,1732365055178,-842.78,0.00019452,2]
[343111867,1732365055187,-578.33,0.00019452,2]
[343111868,1732365055196,-500.0,0.00019452,2]
[343111869,1732365055205,-500.0,0.00019452,2]
[343111870,1732365055216,-500.0,0.00019452,2]
[343111871,1732365055226,-1383.33,0.00019452,2]
[343111872,1732365055235,-500.0,0.00019452,2]
[343111873,1732365055245,-500.0,0.00019452,2]
[343111874,1732365055255,-1169.97,0.00019452,2]
[343111875,1732365055264,-1291.18,0.00019452,2]
[343111876,1732365055273,-500.0,0.00019452,2]
[343111877,1732365055282,-500.0,0.00019452,2]
[343111878,1732365055293,-646.71,0.00019452,2]
[343111879,1732365055303,-500.0,0.00019452,2]
[343111880,1732365055313,-793.31,0.00019452,2]
[343111881,1732365055323,-777.35,0.00019452,2]
[343111882,1732365055333,-500.0,0.00019452,2]
[343111883,1732365055342,-500.0,0.00019452,2]
[343111884,1732365055352,-574.6,0.00019452,2]
[343111885,1732365055361,-675.76,0.00019452,2]
[343111886,1732365055371,-500.0,0.00019452,2]
[343111887,1732365055380,-834.23,0.00019452,2]
[343111888,1732365055390,-1775.31,0.00019452,2]
[343111889,1732365055399,-1241.49,0.00019452,2]
[343111890,1732365055414,-500.0,0.00019452,2]
[343111891,1732365055425,-500.0,0.00019452,2]
[343111892,1732365055435,-500.0,0.00019452,2]
[343111893,1732365055447,-940.78,0.00019452,2]
[343111894,1732365055456,-500.0,0.00019452,2]
[343111895,1732365055466,-1036.92,0.00019452,2]
[343111896,1732365055476,-500.0,0.00019452,2]
[343111897,1732365055485,-500.0,0.00019452,2]
[343111898,1732365055496,-559.35,0.00019452,2]
[343111899,1732365055507,-500.0,0.00019452,2]
[343111900,1732365055518,-760.69,0.00019452,2]
[343111901,1732365055528,-500.0,0.00019452,2]
[343111902,1732365055538,-747.52,0.00019452,2]
[343111903,1732365055548,-500.0,0.00019452,2]
[343111904,1732365055558,-652.03,0.00019452,2]
[343111905,1732365055568,-500.0,0.00019452,2]
[343111906,1732365055577,-521.29635945,0.00019452,2]
[343111907,1732365055587,-500.0,0.00019452,2]
[343111908,1732365055597,-500.0,0.00019452,2]
[343111909,1732365055607,-3171.39,0.00019452,2]
[343111910,1732365055617,-500.0,0.00019452,2]
[343111911,1732365055627,-1121.64,0.00019452,2]
[343111912,1732365055638,-500.0,0.00019452,2]
[343111913,1732365055647,-1906.01,0.00019452,2]
[343111914,1732365055657,-1273.82,0.00019452,2]
[343111915,1732365055667,-500.0,0.00019452,2]
[343111916,1732365055682,-500.0,0.00019452,2]
[343111917,1732365055692,-2677.03,0.00019452,2]
[343111918,1732365055703,-804.49,0.00019452,2]
[343111919,1732365055712,-544.81,0.00019452,2]
[343111920,1732365055722,-500.0,0.00019452,2]
[343111921,1732365055731,-675.75,0.00019452,2]
[343111922,1732365055743,-781.85,0.00019452,2]
[343111923,1732365055753,-500.0,0.00019452,2]
[343111924,1732365055762,-500.0,0.00019452,2]
[343111925,1732365055772,-500.0,0.00019452,2]
[343111926,1732365055782,-500.0,0.00019452,2]
[343111927,1732365055791,-500.0,0.00019452,2]
[343111928,1732365055801,-500.0,0.00019452,2]
[343111929,1732365055811,-500.0,0.00019452,2]
[343111930,1732365055820,-500.0,0.00019452,2]
[343111931,1732365055830,-752.17,0.00019452,2]
[343111932,1732365055839,-580.93,0.00019452,2]
[343111933,1732365055849,-500.0,0.00019452,2]
[343111934,1732365055858,-247.4060191,0.00019452,2]
[343111935,1732365055867,-500.0,0.00019452,2]
[343111936,1732365055877,-500.0,0.00019452,2]
[343111937,1732365055887,-500.0,0.00019452,2]
[343111938,1732365055897,-382.10126426,0.00019452,2]
[343111939,1732365055906,-1519.39,0.00019452,2]
[343111940,1732365055916,-754.72,0.00019452,2]
[343111941,1732365055929,-500.0,0.00019452,2]
[343111942,1732365055938,-728.64,0.00019452,2]
[343111943,1732365055948,-500.0,0.00019452,2]
[343111944,1732365055958,-1276.61,0.00019452,2]
[343111945,1732365055968,-500.0,0.00019452,2]
[343111946,1732365055977,-500.0,0.00019452,2]
[343111947,1732365055987,-500.0,0.00019452,2]
[343111948,1732365055996,-500.0,0.00019452,2]
[343111949,1732365056006,-500.0,0.00019452,2]
[343111950,1732365056018,-1140.09,0.00019452,2]
[343111951,1732365056035,-500.0,0.00019452,2]
[343111952,1732365056045,-500.0,0.00019452,2]
[343111953,1732365056055,-500.0,0.00019452,2]
[343111954,1732365056065,-500.0,0.00019452,2]
[343111955,1732365056074,-596.72,0.00019452,2]
[343111956,1732365056083,-1046.62,0.00019452,2]
[343111957,1732365056093,-500.0,0.00019452,2]
[343111958,1732365056103,-16151.6,0.00019452,2]
[343111959,1732365056112,-154.45787497,0.00019452,2]
[343111960,1732365056122,-1058.84,0.00019452,2]
[343111961,1732365056132,-1460.86,0.00019452,2]
[343111962,1732365056142,-809.59,0.00019452,2]
[343111963,1732365056151,-518.79,0.00019452,2]
[343111964,1732365056161,-4867.48,0.00019452,2]
[343111965,1732365056171,-500.0,0.00019452,2]
[343111966,1732365056181,-500.0,0.00019452,2]
[343111967,1732365056190,-500.0,0.00019452,2]
[343111968,1732365056200,-500.0,0.00019452,2]
[343111969,1732365056209,-500.0,0.00019452,2]
[343111970,1732365056219,-520.76946826,0.00019452,2]
[343111971,1732365056230,-1059.49,0.00019452,2]
[343111972,1732365056239,-500.0,0.00019452,2]
[343111973,1732365056249,-500.0,0.00019452,2]
[343111974,1732365056259,-500.0,0.00019452,2]
[343111975,1732365056269,-500.0,0.00019452,2]
[343111976,1732365056278,-500.0,0.00019452,2]
[343111977,1732365056287,-1250.83,0.00019452,2]
[343111978,1732365056297,-8968.37,0.00019452,2]
[343111979,1732365056306,-646.62,0.00019452,2]
[343111980,1732365056315,-452.11777151,0.00019452,2]
[343111981,1732365056325,-500.0,0.00019452,2]